[Event "Titled Tuesday Blitz September 27 Early 2022"]
[White "Koellner, Ruben Gideon"]
[Black "Grandelius, Nils"]
[WhiteFideId "12993093"]
[BlackFideId "1710400"]
[WhiteElo "2286"]
[BlackElo "2617"]
[Result "0-1"]
[Round "02"]
[TimeControl "180+1"]
[Date "2022.09.27"]
[WhiteClock "0:00:06"]
[BlackClock "0:00:38"]

1. d4 {[%clk 0:03:00]}  d5 {[%clk 0:02:59]} 2. Nf3 {[%clk 0:02:56]}  e6 {[%clk 0:03:00]} 3. e3 {[%clk 0:02:55]}  Nf6 {[%clk 0:02:59]} 4. Nbd2 {[%clk 0:02:55]}  b6 {[%clk 0:02:59]} 5. c3 {[%clk 0:02:54]}  Bb7 {[%clk 0:02:59]} 6. Ne5 {[%clk 0:02:53]}  Bd6 {[%clk 0:03:00]} 7. f4 {[%clk 0:02:53]}  Nbd7 {[%clk 0:02:55]} 8. Bd3 {[%clk 0:02:53]}  Ne4 {[%clk 0:02:47]} 9. Nxe4 {[%clk 0:02:49]}  dxe4 {[%clk 0:02:48]} 10. Bb5 {[%clk 0:02:48]}  Bxe5 {[%clk 0:02:49]} 11. dxe5 {[%clk 0:02:00]}  c6 {[%clk 0:02:15]} 12. Be2 {[%clk 0:01:50]}  Nc5 {[%clk 0:02:07]} 13. O-O {[%clk 0:01:16]}  Nd3 {[%clk 0:02:03]} 14. Qc2 {[%clk 0:01:08]}  c5 {[%clk 0:02:01]} 15. Rd1 {[%clk 0:00:53]}  c4 {[%clk 0:02:00]} 16. Qa4+ {[%clk 0:00:52]}  Qd7 {[%clk 0:01:54]} 17. Qxc4 {[%clk 0:00:47]}  Rd8 {[%clk 0:01:54]} 18. b3 {[%clk 0:00:32]}  O-O {[%clk 0:01:48]} 19. Ba3 {[%clk 0:00:32]}  Rfe8 {[%clk 0:01:49]} 20. Bd6 {[%clk 0:00:29]}  Nb2 {[%clk 0:01:45]} 21. Qb5 {[%clk 0:00:24]}  Bc6 {[%clk 0:01:38]} 22. Qb4 {[%clk 0:00:20]}  Nxd1 {[%clk 0:01:37]} 23. Rxd1 {[%clk 0:00:21]}  Rc8 {[%clk 0:01:20]} 24. h3 {[%clk 0:00:19]}  Red8 {[%clk 0:01:20]} 25. Rd4 {[%clk 0:00:18]}  Qb7 {[%clk 0:01:13]} 26. Qa3 {[%clk 0:00:16]}  a5 {[%clk 0:01:13]} 27. c4 {[%clk 0:00:14]}  a4 {[%clk 0:01:09]} 28. b4 {[%clk 0:00:13]}  b5 {[%clk 0:01:10]} 29. c5 {[%clk 0:00:13]}  Bd5 {[%clk 0:01:11]} 30. Qb2 {[%clk 0:00:12]}  a3 {[%clk 0:01:11]} 31. Qd2 {[%clk 0:00:02]}  Ra8 {[%clk 0:01:12]} 32. Bd1 {[%clk 0:00:02]}  Qc6 {[%clk 0:01:09]} 33. Bc2 {[%clk 0:00:02]}  Bxa2 {[%clk 0:01:05]} 34. Bxe4 {[%clk 0:00:02]}  Bd5 {[%clk 0:01:06]} 35. Rxd5 {[%clk 0:00:02]}  exd5 {[%clk 0:01:00]} 36. Bxd5 {[%clk 0:00:02]}  Qxd5 {[%clk 0:01:01]} 37. Qxd5 {[%clk 0:00:02]}  a2 {[%clk 0:01:01]} 38. e6 {[%clk 0:00:01]}  a1=Q+ {[%clk 0:01:01]} 39. Kh2 {[%clk 0:00:02]}  Qf6 {[%clk 0:00:44]} 40. f5 {[%clk 0:00:02]}  fxe6 {[%clk 0:00:43]} 41. fxe6 {[%clk 0:00:02]}  Re8 {[%clk 0:00:43]} 42. e7+ {[%clk 0:00:03]}  Qf7 {[%clk 0:00:43]} 43. Qe4 {[%clk 0:00:03]}  Ra7 {[%clk 0:00:41]} 44. Qc6 {[%clk 0:00:03]}  Raxe7 {[%clk 0:00:41]} 45. Bxe7 {[%clk 0:00:03]}  Qxe7 {[%clk 0:00:41]} 46. Qxb5 {[%clk 0:00:04]}  Qe5+ {[%clk 0:00:41]} 47. Kh1 {[%clk 0:00:05]}  Qxe3 {[%clk 0:00:40]} 48. Qc4+ {[%clk 0:00:06]}  Kh8 {[%clk 0:00:39]} 49. c6 {[%clk 0:00:07]}  Qg3 {[%clk 0:00:37]} 50. Qc1 {[%clk 0:00:05]}  Re1+ {[%clk 0:00:37]} 51. Qxe1 {[%clk 0:00:06]}  Qxe1+ {[%clk 0:00:38]} 52. Kh2 {[%clk 0:00:06]}  Qxb4 {[%clk 0:00:38]} 0-1


[Site "https://www.chess.com"]

[Event "Titled Tuesday Blitz September 27 Early 2022"]
[White "Kosakowski, Jakub"]
[Black "Baches Garcia, Guillermo"]
[WhiteFideId "1185080"]
[BlackFideId "2209764"]
[WhiteElo "2453"]
[BlackElo "2424"]
[Result "1-0"]
[Round "02"]
[TimeControl "180+1"]
[Date "2022.09.27"]
[WhiteClock "0:00:09"]
[BlackClock "0:00:20"]

1. d4 {[%clk 0:03:00]}  Nf6 {[%clk 0:02:58]} 2. Bf4 {[%clk 0:03:00]}  e6 {[%clk 0:02:58]} 3. Nf3 {[%clk 0:02:59]}  d5 {[%clk 0:02:59]} 4. e3 {[%clk 0:02:58]}  Bd6 {[%clk 0:02:59]} 5. Bg3 {[%clk 0:02:57]}  O-O {[%clk 0:02:59]} 6. Bd3 {[%clk 0:02:55]}  c5 {[%clk 0:02:59]} 7. c3 {[%clk 0:02:55]}  Nc6 {[%clk 0:02:59]} 8. Ne5 {[%clk 0:02:54]}  Ne7 {[%clk 0:02:56]} 9. f4 {[%clk 0:02:51]}  b6 {[%clk 0:02:52]} 10. Nd2 {[%clk 0:02:50]}  Bb7 {[%clk 0:02:52]} 11. Qf3 {[%clk 0:02:50]}  Nf5 {[%clk 0:02:52]} 12. Bf2 {[%clk 0:02:49]}  Be7 {[%clk 0:02:52]} 13. Qh3 {[%clk 0:02:48]}  Nd6 {[%clk 0:02:38]} 14. Bh4 {[%clk 0:02:45]}  Nfe4 {[%clk 0:02:31]} 15. Ndf3 {[%clk 0:02:36]}  c4 {[%clk 0:02:04]} 16. Bc2 {[%clk 0:02:28]}  g6 {[%clk 0:01:55]} 17. O-O {[%clk 0:01:41]}  b5 {[%clk 0:01:48]} 18. a3 {[%clk 0:01:37]}  a5 {[%clk 0:01:46]} 19. g4 {[%clk 0:01:11]}  f6 {[%clk 0:01:34]} 20. g5 {[%clk 0:01:05]}  fxe5 {[%clk 0:01:26]} 21. Qxe6+ {[%clk 0:01:04]}  Nf7 {[%clk 0:01:20]} 22. Nxe5 {[%clk 0:00:58]}  Ra6 {[%clk 0:01:11]} 23. Qh3 {[%clk 0:00:50]}  Bc8 {[%clk 0:01:04]} 24. Ng4 {[%clk 0:00:32]}  Qd7 {[%clk 0:00:57]} 25. Bd1 {[%clk 0:00:30]}  Kg7 {[%clk 0:00:45]} 26. Kh1 {[%clk 0:00:23]}  Nfd6 {[%clk 0:00:45]} 27. f5 {[%clk 0:00:20]}  Rxf5 {[%clk 0:00:38]} 28. Be2 {[%clk 0:00:18]}  Qe8 {[%clk 0:00:33]} 29. Qg2 {[%clk 0:00:14]}  Rxf1+ {[%clk 0:00:32]} 30. Rxf1 {[%clk 0:00:15]}  Nf5 {[%clk 0:00:29]} 31. Be1 {[%clk 0:00:15]}  Re6 {[%clk 0:00:25]} 32. Qh3 {[%clk 0:00:12]}  b4 {[%clk 0:00:23]} 33. Ne5 {[%clk 0:00:12]}  Bd6 {[%clk 0:00:21]} 34. Bg4 {[%clk 0:00:12]}  Bxe5 {[%clk 0:00:20]} 35. dxe5 {[%clk 0:00:12]}  Rxe5 {[%clk 0:00:20]} 36. cxb4 {[%clk 0:00:13]}  axb4 {[%clk 0:00:19]} 37. Bxb4 {[%clk 0:00:14]}  Ned6 {[%clk 0:00:18]} 38. Bc3 {[%clk 0:00:14]}  Qe6 {[%clk 0:00:17]} 39. Qg2 {[%clk 0:00:06]}  Kg8 {[%clk 0:00:16]} 40. Bxe5 {[%clk 0:00:06]}  Qxe5 {[%clk 0:00:17]} 41. Qf2 {[%clk 0:00:03]}  Bb7 {[%clk 0:00:16]} 42. Qf4 {[%clk 0:00:03]}  d4+ {[%clk 0:00:16]} 43. Kg1 {[%clk 0:00:03]}  Qxf4 {[%clk 0:00:16]} 44. Rxf4 {[%clk 0:00:03]}  d3 {[%clk 0:00:16]} 45. Kf2 {[%clk 0:00:03]}  Ne4+ {[%clk 0:00:16]} 46. Ke1 {[%clk 0:00:03]}  Bc6 {[%clk 0:00:16]} 47. Bxf5 {[%clk 0:00:03]}  d2+ {[%clk 0:00:16]} 48. Ke2 {[%clk 0:00:03]}  gxf5 {[%clk 0:00:17]} 49. Rxf5 {[%clk 0:00:02]}  Ba4 {[%clk 0:00:17]} 50. Rf1 {[%clk 0:00:03]}  d1=Q+ {[%clk 0:00:17]} 51. Rxd1 {[%clk 0:00:03]}  Bxd1+ {[%clk 0:00:17]} 52. Kxd1 {[%clk 0:00:04]}  Nxg5 {[%clk 0:00:18]} 53. Kc2 {[%clk 0:00:04]}  Kf8 {[%clk 0:00:18]} 54. Kc3 {[%clk 0:00:05]}  Kf7 {[%clk 0:00:18]} 55. Kxc4 {[%clk 0:00:05]}  Ke6 {[%clk 0:00:18]} 56. b4 {[%clk 0:00:06]}  Nf3 {[%clk 0:00:19]} 57. a4 {[%clk 0:00:05]}  Kd6 {[%clk 0:00:19]} 58. a5 {[%clk 0:00:05]}  Nxh2 {[%clk 0:00:18]} 59. b5 {[%clk 0:00:06]}  Kc7 {[%clk 0:00:19]} 60. Kc5 {[%clk 0:00:06]}  Nf3 {[%clk 0:00:19]} 61. a6 {[%clk 0:00:07]}  h5 {[%clk 0:00:18]} 62. b6+ {[%clk 0:00:07]}  Kb8 {[%clk 0:00:18]} 63. Kd6 {[%clk 0:00:07]}  Ne5 {[%clk 0:00:18]} 64. Kxe5 {[%clk 0:00:07]}  h4 {[%clk 0:00:19]} 65. Kf4 {[%clk 0:00:08]}  h3 {[%clk 0:00:19]} 66. Kg3 {[%clk 0:00:08]}  h2 {[%clk 0:00:20]} 67. Kxh2 {[%clk 0:00:09]} 1-0


[Site "https://www.chess.com"]

[Event "Titled Tuesday Blitz September 27 Early 2022"]
[White "Kravtsiv, Martyn"]
[Black "Estrada Nieto, Julian"]
[WhiteFideId "14113147"]
[BlackFideId "5101018"]
[WhiteElo "2694"]
[BlackElo "2252"]
[Result "1-0"]
[Round "02"]
[TimeControl "180+1"]
[Date "2022.09.27"]
[WhiteClock "0:01:55"]
[BlackClock "0:00:24"]

1. e4 {[%clk 0:03:00]}  e5 {[%clk 0:02:59]} 2. Nf3 {[%clk 0:03:01]}  Nc6 {[%clk 0:02:59]} 3. Nc3 {[%clk 0:03:01]}  Nf6 {[%clk 0:02:59]} 4. a4 {[%clk 0:03:01]}  Bb4 {[%clk 0:02:54]} 5. Bd3 {[%clk 0:03:01]}  O-O {[%clk 0:02:46]} 6. O-O {[%clk 0:02:59]}  Re8 {[%clk 0:02:31]} 7. Re1 {[%clk 0:02:58]}  d5 {[%clk 0:02:24]} 8. Nxd5 {[%clk 0:02:56]}  Nxd5 {[%clk 0:02:24]} 9. exd5 {[%clk 0:02:56]}  Qxd5 {[%clk 0:02:23]} 10. Be4 {[%clk 0:02:42]}  Qd6 {[%clk 0:02:23]} 11. c3 {[%clk 0:02:41]}  Bc5 {[%clk 0:02:21]} 12. d4 {[%clk 0:02:32]}  exd4 {[%clk 0:02:00]} 13. Bxh7+ {[%clk 0:02:31]}  Kf8 {[%clk 0:01:53]} 14. Rxe8+ {[%clk 0:02:31]}  Kxe8 {[%clk 0:01:54]} 15. b4 {[%clk 0:02:31]}  dxc3 {[%clk 0:01:40]} 16. Qe1+ {[%clk 0:02:30]}  Qe7 {[%clk 0:01:39]} 17. bxc5 {[%clk 0:02:30]}  Qxe1+ {[%clk 0:01:34]} 18. Nxe1 {[%clk 0:02:31]}  g6 {[%clk 0:01:33]} 19. Be3 {[%clk 0:02:25]}  Bf5 {[%clk 0:01:28]} 20. Rc1 {[%clk 0:02:18]}  Ke7 {[%clk 0:01:20]} 21. Rxc3 {[%clk 0:02:09]}  Rh8 {[%clk 0:01:20]} 22. Bxg6 {[%clk 0:02:07]}  fxg6 {[%clk 0:01:18]} 23. h3 {[%clk 0:02:07]}  Kf7 {[%clk 0:01:05]} 24. Nf3 {[%clk 0:02:05]}  Rd8 {[%clk 0:01:02]} 25. Bf4 {[%clk 0:02:05]}  Rd7 {[%clk 0:00:58]} 26. g4 {[%clk 0:02:05]}  Be4 {[%clk 0:00:55]} 27. Ng5+ {[%clk 0:02:04]}  Kg8 {[%clk 0:00:50]} 28. Nxe4 {[%clk 0:02:05]}  Rd4 {[%clk 0:00:50]} 29. Re3 {[%clk 0:02:03]}  Rxa4 {[%clk 0:00:49]} 30. Bxc7 {[%clk 0:02:02]}  Nd4 {[%clk 0:00:46]} 31. Nd6 {[%clk 0:01:56]}  Nc6 {[%clk 0:00:29]} 32. Nxb7 {[%clk 0:01:55]}  Ra1+ {[%clk 0:00:24]} 33. Kg2 {[%clk 0:01:54]}  a5 {[%clk 0:00:25]} 34. Nxa5 {[%clk 0:01:53]}  Nxa5 {[%clk 0:00:24]} 35. Bxa5 {[%clk 0:01:54]}  Rxa5 {[%clk 0:00:24]} 36. Rc3 {[%clk 0:01:55]} 1-0


[Site "https://www.chess.com"]

[Event "Titled Tuesday Blitz September 27 Early 2022"]
[White "Kvon, Andrey"]
[Black "Jones, Daniel"]
[WhiteFideId "14201356"]
[BlackFideId "2019655"]
[WhiteElo "2458"]
[BlackElo "2337"]
[Result "1-0"]
[Round "02"]
[TimeControl "180+1"]
[Date "2022.09.27"]
[WhiteClock "0:00:56"]
[BlackClock "0:00:13"]

1. d4 {[%clk 0:03:00]}  Nf6 {[%clk 0:02:57]} 2. c4 {[%clk 0:02:59]}  e6 {[%clk 0:02:49]} 3. Nf3 {[%clk 0:02:58]}  Bb4+ {[%clk 0:02:45]} 4. Bd2 {[%clk 0:02:57]}  c5 {[%clk 0:02:39]} 5. Bxb4 {[%clk 0:02:54]}  cxb4 {[%clk 0:02:39]} 6. e3 {[%clk 0:02:55]}  a5 {[%clk 0:02:39]} 7. a3 {[%clk 0:02:55]}  bxa3 {[%clk 0:02:37]} 8. Rxa3 {[%clk 0:02:56]}  O-O {[%clk 0:02:35]} 9. Be2 {[%clk 0:02:56]}  d5 {[%clk 0:02:35]} 10. O-O {[%clk 0:02:54]}  Bd7 {[%clk 0:02:32]} 11. Nbd2 {[%clk 0:02:52]}  dxc4 {[%clk 0:02:28]} 12. Nxc4 {[%clk 0:02:49]}  b5 {[%clk 0:02:28]} 13. Nce5 {[%clk 0:02:47]}  b4 {[%clk 0:02:28]} 14. Ra1 {[%clk 0:02:47]}  Be8 {[%clk 0:02:17]} 15. Qc2 {[%clk 0:02:32]}  Nbd7 {[%clk 0:02:11]} 16. Nc6 {[%clk 0:02:29]}  Qb6 {[%clk 0:02:05]} 17. Rfc1 {[%clk 0:02:29]}  Nd5 {[%clk 0:01:56]} 18. e4 {[%clk 0:02:27]}  Nf4 {[%clk 0:01:49]} 19. Bf1 {[%clk 0:02:26]}  Nf6 {[%clk 0:01:37]} 20. g3 {[%clk 0:01:53]}  Ng6 {[%clk 0:01:31]} 21. Nce5 {[%clk 0:01:45]}  Nxe5 {[%clk 0:01:29]} 22. dxe5 {[%clk 0:01:46]}  b3 {[%clk 0:01:10]} 23. Qc4 {[%clk 0:01:25]}  Ng4 {[%clk 0:01:05]} 24. Qc5 {[%clk 0:01:25]}  Qxc5 {[%clk 0:00:54]} 25. Rxc5 {[%clk 0:01:26]}  a4 {[%clk 0:00:52]} 26. h3 {[%clk 0:01:26]}  Nh6 {[%clk 0:00:52]} 27. Nd4 {[%clk 0:01:24]}  Bd7 {[%clk 0:00:48]} 28. Bb5 {[%clk 0:01:20]}  Bxb5 {[%clk 0:00:41]} 29. Rxb5 {[%clk 0:01:21]}  Rfd8 {[%clk 0:00:38]} 30. Rb4 {[%clk 0:01:21]}  Kh8 {[%clk 0:00:20]} 31. Raxa4 {[%clk 0:01:19]}  Rxa4 {[%clk 0:00:20]} 32. Rxa4 {[%clk 0:01:20]}  Ng8 {[%clk 0:00:21]} 33. Rb4 {[%clk 0:01:08]}  h5 {[%clk 0:00:21]} 34. Nxb3 {[%clk 0:01:08]}  Rd1+ {[%clk 0:00:20]} 35. Kg2 {[%clk 0:01:07]}  Re1 {[%clk 0:00:21]} 36. Kf3 {[%clk 0:01:06]}  Ne7 {[%clk 0:00:20]} 37. Nd4 {[%clk 0:01:06]}  Ng6 {[%clk 0:00:19]} 38. Rb5 {[%clk 0:01:02]}  Rb1 {[%clk 0:00:18]} 39. h4 {[%clk 0:00:58]}  Kh7 {[%clk 0:00:18]} 40. Ke2 {[%clk 0:00:58]}  Ne7 {[%clk 0:00:15]} 41. Rb7 {[%clk 0:00:56]}  Ng6 {[%clk 0:00:15]} 42. Nf3 {[%clk 0:00:56]}  Kg8 {[%clk 0:00:15]} 43. Rb8+ {[%clk 0:00:57]}  Kh7 {[%clk 0:00:15]} 44. Ng5+ {[%clk 0:00:57]}  Kh6 {[%clk 0:00:16]} 45. Nxf7+ {[%clk 0:00:57]}  Kh7 {[%clk 0:00:16]} 46. Ng5+ {[%clk 0:00:58]}  Kh6 {[%clk 0:00:17]} 47. f4 {[%clk 0:00:59]}  Rg1 {[%clk 0:00:15]} 48. Kf2 {[%clk 0:00:59]}  Rb1 {[%clk 0:00:15]} 49. Nf7+ {[%clk 0:00:59]}  Kh7 {[%clk 0:00:15]} 50. Ng5+ {[%clk 0:01:00]}  Kh6 {[%clk 0:00:16]} 51. Nxe6 {[%clk 0:01:01]}  Ne7 {[%clk 0:00:15]} 52. f5 {[%clk 0:00:57]}  Nc6 {[%clk 0:00:13]} 53. Rh8# {[%clk 0:00:56]} 1-0


[Site "https://www.chess.com"]

[Event "Titled Tuesday Blitz September 27 Early 2022"]
[White "Levitan, Caleb Levi"]
[Black "Avazkhonov, Alikhon"]
[WhiteFideId "14332620"]
[BlackFideId "14208504"]
[WhiteElo "1811"]
[BlackElo "1739"]
[Result "0-1"]
[Round "02"]
[TimeControl "180+1"]
[Date "2022.09.27"]
[WhiteClock "0:00:13"]
[BlackClock "0:00:08"]

1. e4 {[%clk 0:03:00]}  c5 {[%clk 0:02:59]} 2. Nf3 {[%clk 0:03:01]}  d6 {[%clk 0:02:59]} 3. d4 {[%clk 0:03:01]}  cxd4 {[%clk 0:03:00]} 4. Nxd4 {[%clk 0:03:01]}  Nf6 {[%clk 0:02:59]} 5. Nc3 {[%clk 0:03:02]}  a6 {[%clk 0:02:59]} 6. Bc4 {[%clk 0:03:01]}  e6 {[%clk 0:02:58]} 7. Bb3 {[%clk 0:03:01]}  Be7 {[%clk 0:02:59]} 8. g4 {[%clk 0:03:01]}  O-O {[%clk 0:02:55]} 9. g5 {[%clk 0:02:59]}  Nfd7 {[%clk 0:02:54]} 10. Rg1 {[%clk 0:02:56]}  Nc6 {[%clk 0:02:42]} 11. h4 {[%clk 0:02:47]}  Nxd4 {[%clk 0:01:20]} 12. Qxd4 {[%clk 0:02:47]}  Ne5 {[%clk 0:01:21]} 13. Qd1 {[%clk 0:02:36]}  b5 {[%clk 0:01:21]} 14. f4 {[%clk 0:02:35]}  Qb6 {[%clk 0:01:15]} 15. Rg3 {[%clk 0:02:25]}  Nc4 {[%clk 0:01:14]} 16. Bxc4 {[%clk 0:02:13]}  bxc4 {[%clk 0:01:15]} 17. h5 {[%clk 0:01:44]}  Bb7 {[%clk 0:01:00]} 18. Qg4 {[%clk 0:01:07]}  f5 {[%clk 0:00:31]} 19. gxf6 {[%clk 0:01:01]}  Bxf6 {[%clk 0:00:31]} 20. h6 {[%clk 0:00:48]}  g6 {[%clk 0:00:25]} 21. e5 {[%clk 0:00:33]}  dxe5 {[%clk 0:00:20]} 22. f5 {[%clk 0:00:21]}  exf5 {[%clk 0:00:19]} 23. Qxc4+ {[%clk 0:00:21]}  Kh8 {[%clk 0:00:18]} 24. Be3 {[%clk 0:00:18]}  Qc6 {[%clk 0:00:12]} 25. Qb4 {[%clk 0:00:13]}  f4 {[%clk 0:00:11]} 26. O-O-O {[%clk 0:00:12]}  fxg3 {[%clk 0:00:10]} 27. Rd6 {[%clk 0:00:12]}  Qh1+ {[%clk 0:00:10]} 28. Rd1 {[%clk 0:00:11]}  Qf3 {[%clk 0:00:09]} 29. Bc5 {[%clk 0:00:10]}  Bg5+ {[%clk 0:00:08]} 30. Kb1 {[%clk 0:00:10]}  g2 {[%clk 0:00:07]} 31. Bxf8 {[%clk 0:00:09]}  Rxf8 {[%clk 0:00:06]} 32. Rg1 {[%clk 0:00:06]}  Qf1+ {[%clk 0:00:05]} 33. Nd1 {[%clk 0:00:06]}  Rd8 {[%clk 0:00:04]} 34. Qe1 {[%clk 0:00:03]}  Rxd1+ {[%clk 0:00:03]} 35. Qxd1 {[%clk 0:00:03]}  Qxd1+ {[%clk 0:00:03]} 36. Rxd1 {[%clk 0:00:04]}  Kg8 {[%clk 0:00:03]} 37. Rg1 {[%clk 0:00:05]}  Be3 {[%clk 0:00:02]} 38. Rxg2 {[%clk 0:00:05]}  Bxg2 {[%clk 0:00:03]} 39. c3 {[%clk 0:00:06]}  Be4+ {[%clk 0:00:04]} 40. Ka1 {[%clk 0:00:06]}  Bxh6 {[%clk 0:00:05]} 41. c4 {[%clk 0:00:06]}  Be3 {[%clk 0:00:05]} 42. b4 {[%clk 0:00:06]}  h5 {[%clk 0:00:06]} 43. b5 {[%clk 0:00:07]}  axb5 {[%clk 0:00:06]} 44. cxb5 {[%clk 0:00:08]}  Bb6 {[%clk 0:00:06]} 45. a4 {[%clk 0:00:09]}  h4 {[%clk 0:00:06]} 46. Ka2 {[%clk 0:00:09]}  h3 {[%clk 0:00:07]} 47. Ka3 {[%clk 0:00:09]}  h2 {[%clk 0:00:07]} 48. Kb4 {[%clk 0:00:10]}  h1=Q {[%clk 0:00:08]} 49. a5 {[%clk 0:00:11]}  Qb1+ {[%clk 0:00:08]} 50. Kc4 {[%clk 0:00:11]}  Qd3+ {[%clk 0:00:07]} 51. Kb4 {[%clk 0:00:11]}  Qd4+ {[%clk 0:00:08]} 52. Ka3 {[%clk 0:00:11]}  Bc5+ {[%clk 0:00:08]} 53. Kb3 {[%clk 0:00:11]}  Bd5+ {[%clk 0:00:09]} 54. Kc2 {[%clk 0:00:12]}  Qc4+ {[%clk 0:00:09]} 55. Kd2 {[%clk 0:00:12]}  Bb4+ {[%clk 0:00:08]} 56. Kd1 {[%clk 0:00:13]}  Qd3+ {[%clk 0:00:08]} 57. Kc1 {[%clk 0:00:13]}  Ba3# {[%clk 0:00:08]} 0-1


[Site "https://www.chess.com"]

[Event "Titled Tuesday Blitz September 27 Early 2022"]
[White "Malyi, Viacheslav"]
[Black "Ibrahimli, Murad"]
[WhiteFideId "14123983"]
[BlackFideId "13410229"]
[WhiteElo "2190"]
[BlackElo "2109"]
[Result "1/2-1/2"]
[Round "02"]
[TimeControl "180+1"]
[Date "2022.09.27"]
[WhiteClock "0:00:06"]
[BlackClock "0:00:06"]

1. e4 {[%clk 0:03:00]}  c5 {[%clk 0:02:59]} 2. Nf3 {[%clk 0:03:00]}  d6 {[%clk 0:03:00]} 3. d4 {[%clk 0:03:01]}  cxd4 {[%clk 0:03:00]} 4. Nxd4 {[%clk 0:03:01]}  Nf6 {[%clk 0:03:01]} 5. Nc3 {[%clk 0:03:02]}  a6 {[%clk 0:03:02]} 6. Rg1 {[%clk 0:03:02]}  h5 {[%clk 0:03:00]} 7. h3 {[%clk 0:03:02]}  e5 {[%clk 0:02:59]} 8. Nb3 {[%clk 0:03:01]}  Be6 {[%clk 0:02:57]} 9. g4 {[%clk 0:03:02]}  hxg4 {[%clk 0:02:57]} 10. hxg4 {[%clk 0:03:03]}  g6 {[%clk 0:02:57]} 11. g5 {[%clk 0:03:03]}  Nh5 {[%clk 0:02:57]} 12. Be3 {[%clk 0:03:03]}  Nd7 {[%clk 0:02:54]} 13. Qd2 {[%clk 0:03:04]}  Rc8 {[%clk 0:02:53]} 14. O-O-O {[%clk 0:03:04]}  Nb6 {[%clk 0:02:52]} 15. Kb1 {[%clk 0:03:03]}  Be7 {[%clk 0:02:50]} 16. Be2 {[%clk 0:03:00]}  Nc4 {[%clk 0:02:47]} 17. Bxc4 {[%clk 0:02:58]}  Rxc4 {[%clk 0:02:48]} 18. f3 {[%clk 0:02:58]}  Qc7 {[%clk 0:02:44]} 19. Nd5 {[%clk 0:02:56]}  Bxd5 {[%clk 0:02:44]} 20. exd5 {[%clk 0:02:57]}  Nf4 {[%clk 0:02:38]} 21. c3 {[%clk 0:02:41]}  Rh5 {[%clk 0:02:21]} 22. Qc2 {[%clk 0:02:29]}  Qd7 {[%clk 0:01:08]} 23. Nd2 {[%clk 0:02:27]}  Rh2 {[%clk 0:01:01]} 24. Rh1 {[%clk 0:02:20]}  Rxh1 {[%clk 0:00:45]} 25. Rxh1 {[%clk 0:02:21]}  Ra4 {[%clk 0:00:46]} 26. b3 {[%clk 0:02:09]}  Nxd5 {[%clk 0:00:45]} 27. Rh8+ {[%clk 0:01:37]}  Bf8 {[%clk 0:00:44]} 28. bxa4 {[%clk 0:01:37]}  Nxe3 {[%clk 0:00:44]} 29. Qd3 {[%clk 0:01:33]}  Nf5 {[%clk 0:00:40]} 30. Ne4 {[%clk 0:01:30]}  Qxa4 {[%clk 0:00:40]} 31. Qd5 {[%clk 0:01:17]}  Qc6 {[%clk 0:00:25]} 32. Qb3 {[%clk 0:01:02]}  Ke7 {[%clk 0:00:21]} 33. Rh7 {[%clk 0:01:00]}  Bg7 {[%clk 0:00:21]} 34. Nf6 {[%clk 0:00:57]}  Qxf3 {[%clk 0:00:20]} 35. Nd5+ {[%clk 0:00:48]}  Kf8 {[%clk 0:00:20]} 36. Qxb7 {[%clk 0:00:43]}  Qd1+ {[%clk 0:00:17]} 37. Kb2 {[%clk 0:00:41]}  Qd2+ {[%clk 0:00:13]} 38. Kb3 {[%clk 0:00:36]}  Qd1+ {[%clk 0:00:12]} 39. Ka3 {[%clk 0:00:32]}  Qc1+ {[%clk 0:00:12]} 40. Ka4 {[%clk 0:00:23]}  Qc2+ {[%clk 0:00:12]} 41. Ka3 {[%clk 0:00:16]}  Qc1+ {[%clk 0:00:09]} 42. Ka4 {[%clk 0:00:14]}  Qc2+ {[%clk 0:00:08]} 43. Ka3 {[%clk 0:00:06]}  Qc1+ {[%clk 0:00:06]} 1/2-1/2


[Site "https://www.chess.com"]

[Event "Titled Tuesday Blitz September 27 Early 2022"]
[White "Martin Duque, Jesus"]
[Black "Nigmatov, Ortik"]
[WhiteFideId "2208954"]
[BlackFideId "14202131"]
[WhiteElo "2258"]
[BlackElo "2378"]
[Result "1-0"]
[Round "02"]
[TimeControl "180+1"]
[Date "2022.09.27"]
[WhiteClock "0:01:01"]
[BlackClock "0:00:05"]

1. Nf3 {[%clk 0:03:00]}  Nf6 {[%clk 0:02:59]} 2. b3 {[%clk 0:03:01]}  g6 {[%clk 0:02:59]} 3. Bb2 {[%clk 0:03:01]}  Bg7 {[%clk 0:03:00]} 4. g3 {[%clk 0:03:02]}  c5 {[%clk 0:03:00]} 5. Bg2 {[%clk 0:03:02]}  d6 {[%clk 0:03:00]} 6. c4 {[%clk 0:03:01]}  e5 {[%clk 0:02:59]} 7. O-O {[%clk 0:03:01]}  O-O {[%clk 0:02:59]} 8. d3 {[%clk 0:03:01]}  Nc6 {[%clk 0:02:59]} 9. Nc3 {[%clk 0:03:00]}  Be6 {[%clk 0:02:57]} 10. Ng5 {[%clk 0:02:57]}  Bd7 {[%clk 0:02:56]} 11. Nge4 {[%clk 0:02:57]}  Nxe4 {[%clk 0:02:53]} 12. dxe4 {[%clk 0:02:57]}  Be6 {[%clk 0:02:52]} 13. Qd2 {[%clk 0:02:51]}  Qe7 {[%clk 0:02:49]} 14. Rad1 {[%clk 0:02:48]}  Rad8 {[%clk 0:02:48]} 15. e3 {[%clk 0:02:47]}  a6 {[%clk 0:02:46]} 16. f4 {[%clk 0:02:47]}  f5 {[%clk 0:02:32]} 17. Nd5 {[%clk 0:02:44]}  Qf7 {[%clk 0:02:23]} 18. exf5 {[%clk 0:02:32]}  gxf5 {[%clk 0:02:22]} 19. e4 {[%clk 0:02:30]}  exf4 {[%clk 0:01:17]} 20. exf5 {[%clk 0:02:21]}  Bxf5 {[%clk 0:01:12]} 21. Rxf4 {[%clk 0:02:15]}  Bxb2 {[%clk 0:01:08]} 22. Qxb2 {[%clk 0:02:13]}  Qg7 {[%clk 0:01:09]} 23. Qf2 {[%clk 0:02:08]}  Nd4 {[%clk 0:01:03]} 24. Rdxd4 {[%clk 0:02:07]}  cxd4 {[%clk 0:01:02]} 25. Rxf5 {[%clk 0:02:05]}  d3 {[%clk 0:00:54]} 26. Nf6+ {[%clk 0:01:46]}  Kh8 {[%clk 0:00:53]} 27. Nh5 {[%clk 0:01:27]}  Qa1+ {[%clk 0:00:20]} 28. Bf1 {[%clk 0:01:27]}  Rxf5 {[%clk 0:00:19]} 29. Qxf5 {[%clk 0:01:27]}  d2 {[%clk 0:00:20]} 30. Nf6 {[%clk 0:01:25]}  Rd7 {[%clk 0:00:10]} 31. Nxd7 {[%clk 0:01:18]}  Qd4+ {[%clk 0:00:09]} 32. Kg2 {[%clk 0:01:16]}  h6 {[%clk 0:00:05]} 33. Qf8+ {[%clk 0:01:15]}  Kh7 {[%clk 0:00:05]} 34. Qf7+ {[%clk 0:01:09]}  Kh8 {[%clk 0:00:05]} 35. Nf6 {[%clk 0:01:01]} 1-0


[Site "https://www.chess.com"]